{"text_format":"1","workbook":"xlsx","n_sheets":2,"sheets":["【調査票 09】母子生活（児）","data"],"not_rendered":{"charts":0,"images":1,"macros":1,"external_links":0,"defined_names":1,"comments":0,"pivot_tables":0},"unopened":[],"bounds":{"document_bytes":16777216,"sheet_cells":100000,"rows_first":2000,"rows_last":500,"rows_between":2000,"halvings":0,"cell_chars":16384,"cell_head_chars":4096},"cells_cut":0,"cells_raw":0,"read":"whole","date_system":"1900"}

{"sheet":"【調査票 09】母子生活（児）","index":0,"n_rows":53,"n_cols":98,"rows_kept":53,"cut":false,"hidden":false,"merged":[[32,45,32,61],[45,77,45,82],[12,77,12,88],[9,77,9,88],[15,21,15,22],[15,69,15,76],[15,80,15,83],[37,4,38,15],[42,4,44,15],[48,4,48,15],[0,1,0,89],[1,0,2,16],[3,1,3,89],[4,1,4,89],[8,1,10,9],[8,10,10,15],[8,16,10,21],[8,22,10,25],[8,26,10,29],[8,30,10,35],[8,36,10,40],[8,41,10,44],[8,68,10,74],[51,4,52,15],[51,42,52,52],[54,1,54,89],[49,4,49,15],[14,1,53,3],[15,4,15,15],[15,30,15,35],[15,58,15,66],[17,4,25,15],[17,16,17,21],[17,56,22,67],[18,16,19,21],[20,16,20,21],[21,16,22,21],[23,16,25,21],[27,4,34,15]]}
[null,"令和４年度児童養護施設入所児童等調査"]
[]
[]
[null,"母子生活支援施設票（児童用）"]
[null,"（令和５年２月１日現在）"]
[]
[]
[]
[null,"都道府県\n指定都市\n中核市\n児童相談所設置市\n（番号）",null,null,null,null,null,null,null,null,null,null,null,null,null,null,"施設\n\n番号",null,null,null,null,null,null,null,null,null,"世帯\n\n番号",null,null,null,null,null,null,null,null,null,"調査票\n\n種別",null,null,null,null,"９",null,null,null,null,null,null,null,null,null,null,null,null,null,null,null,null,null,null,null,null,null,null,null,null,null,null,"都道府県\n指定都市\n中 核 市\n児童相談所設置市\n（名称）"]
[]
[]
[]
[null,null,null,null,null,null,null,null,null,null,null,null,null,null,null,null,null,null,null,null,null,null,null,null,null,null,null,null,null,null,null,null,null,null,null,null,null,null,null,null,null,null,null,null,null,null,null,null,null,null,null,null,null,null,null,null,null,null,null,null,null,null,null,null,null,null,null,null,"施設の名称"]
[]
[null,"児童の現在の状況　１",null,null,null,null,null,null,null,null,null,null,null,null,null,null,null,null,null,null,null,null,null,null,null,null,null,null,null,null,null,null,null,null,null,null,null,null,null,null,null,null,null,null,null,null,null,null,null,null,null,null,null,null,null,null,null,null,null,null,null,null,null,null,null,null,null,null,null,null,null,null,null,null,null,null,null,null,null,null,null,null,null,null,null,null,null,null,null,null,null,null,null,null,null,null,"出生年月",{"$f":"BR16&RIGHT(100+ CC16,2)","v":"00"}]
[null,null,null,null,"(1)児童番号",null,null,null,null,null,null,null,null,null,null,null,null,null,null,null,null,null,null,null,null,null,null,null,null,null,"(2)性別",null,null,null,null,null,null,null,null,null,null,null,null,null,null,null,null,null,null,null,null,null,null,null,null,null,null,null,"(3)出生年月",null,null,null,null,null,null,null,null,null,"西暦",null,null,null,null,null,null,null,null,"年",null,null,null,null,null,null,"月"]
[]
[null,null,null,null,"(4)就学及び\n就職状況",null,null,null,null,null,null,null,null,null,null,null,"就学前",null,null,null,null,null,null,null,0,null,null,null,null,null,null,null,null,null,null,null,null,null,null,null,null,null,null,null,null,null,null,null,null,null,null,null,null,null,null,null,"(4) 就学及び就職状況の「04 小学１年」～「14 私立高校」の補問",null,null,null,null,null,null,null,null,null,null,null,null,0]
[null,null,null,null,null,null,null,null,null,null,null,null,null,null,null,null,"小学校"]
[]
[null,null,null,null,null,null,null,null,null,null,null,null,null,null,null,null,"中学校"]
[null,null,null,null,null,null,null,null,null,null,null,null,null,null,null,null,"中学卒"]
[]
[null,null,null,null,null,null,null,null,null,null,null,null,null,null,null,null,"高校卒"]
[]
[]
[]
[null,null,null,null,"(5)\n心身の状況\n\n(複数回答可)",null,null,null,null,null,null,null,null,null,null,null,null,null,false]
[null,null,null,null,null,null,null,null,null,null,null,null,null,null,null,null,null,null,false,null,null,null,null,null,null,null,null,null,null,null,null,null,null,null,null,false,null,null,null,null,null,null,null,null,null,null,null,null,null,null,null,null,false,null,null,null,null,null,null,null,null,null,null,null,null,null,null,false]
[null,null,null,null,null,null,null,null,null,null,null,null,null,null,null,null,null,null,false,null,null,null,null,null,null,null,null,null,null,null,null,null,null,null,null,false,null,null,null,null,null,null,null,null,null,null,null,null,null,null,null,null,false,null,null,null,null,null,null,null,null,null,null,null,null,null,null,false]
[null,null,null,null,null,null,null,null,null,null,null,null,null,null,null,null,null,null,false,null,null,null,null,null,null,null,null,null,null,null,null,null,null,null,null,false,null,null,null,null,null,null,null,null,null,null,null,null,null,null,null,null,null,null,null,null,null,false]
[null,null,null,null,null,null,null,null,null,null,null,null,null,null,null,null,null,null,false,null,null,null,null,null,null,null,null,null,null,null,null,null,null,null,null,null,null,null,null,null,null,null,null,null,null,false,null,null,null,null,null,null,null,null,false,null,null,null,null,null,null,null,null,null,null,null,null,false]
[null,null,null,null,null,null,null,null,null,null,null,null,null,null,null,null,null,null,false,null,null,null,null,null,null,null,null,null,null,null,null,null,null,null,null,false,null,null,null,null,null,null,null,null,null,null,null,null,null,null,null,null,null,null,null,null,null,null,null,null,null,null,")"]
[null,null,null,null,null,null,null,null,null,null,null,null,null,null,null,null,null,null,false]
[null,null,null,null,null,null,null,null,null,null,null,null,null,null,null,null,null,null,false]
[]
[]
[null,null,null,null,"(6)罹病傾向\n(複数回答可)",null,null,null,null,null,null,null,null,null,null,null,null,null,false,null,null,null,null,null,null,null,null,null,null,null,null,null,null,null,null,false,null,null,null,null,null,null,null,null,null,null,null,null,null,null,null,null,false,null,null,null,null,null,null,null,null,null,null,null,null,null,false]
[null,null,null,null,null,null,null,null,null,null,null,null,null,null,null,null,null,null,false,null,null,null,null,null,null,null,null,null,null,null,null,null,null,null,null,false,null,null,null,null,null,null,null,null,null,null,null,null,null,null,null,null,false]
[]
[]
[null,null,null,null,null,null,null,null,null,null,null,null,null,null,null,null,null,null,false,null,null,null,null,null,null,null,null,null,null,null,null,null,null,null,null,null,false,null,null,null,null,null,null,null,null,null,null,null,null,null,null,null,false,null,null,null,null,null,null,null,null,null,null,null,null,null,null,null,null,null,null,false]
[null,null,null,null,"(7)特に支援上\n留意している点\n(複数回答可)",null,null,null,null,null,null,null,null,null,null,null,null,null,false,null,null,null,null,null,null,null,null,null,null,null,null,null,null,null,null,null,false,null,null,null,null,null,null,null,null,null,null,null,null,null,null,null,false,null,null,null,null,null,null,null,null,null,null,null,null,null,null,null,null,null,null,false]
[null,null,null,null,null,null,null,null,null,null,null,null,null,null,null,null,null,null,false,null,null,null,null,null,null,null,null,null,null,null,null,null,null,null,null,null,false,null,null,null,null,null,null,null,null,null,null,null,null,null,null,null,false,null,null,null,null,null,null,null,null,null,null,null,null,null,null,null,null,null,null,false]
[null,null,null,null,null,null,null,null,null,null,null,null,null,null,null,null,null,null,false,null,null,null,null,null,null,null,null,null,null,null,null,null,null,null,null,null,false,null,null,null,null,null,null,null,null,null,null,null,null,null,null,null,false,null,null,null,null,null,null,null,null,null,null,null,null,null,null,null,null,null,null,false]
[null,null,null,null,null,null,null,null,null,null,null,null,null,null,null,null,null,null,false,null,null,null,null,null,null,null,null,null,null,null,null,null,null,null,null,null,false,null,null,null,null,null,null,null,null,null,null,null,null,null,null,null,false,null,null,null,null,null,null,null,null,null,null,null,null,null,null,null,null,null,null,false,null,null,null,null,null,null,null,null,null,null,null,")"]
[null,null,null,null,null,null,null,null,null,null,null,null,null,null,null,null,null,null,false]
[]
[null,null,null,null,"(8)学業の状況",null,null,null,null,null,null,null,null,null,null,null,null,null,null,null,0]
[null,null,null,null,"(9)通学状況",null,null,null,null,null,null,null,null,null,null,null,null,null,false,null,0,null,null,null,null,null,null,null,null,null,null,null,null,null,false,null,null,null,null,null,null,null,null,null,null,null,null,null,null,null,false,null,null,null,null,null,null,null,null,null,null,null,false]
[]
[null,null,null,null,"(10)被虐待経験の\n状況",null,null,null,null,null,null,null,null,null,null,null,null,null,null,null,null,null,null,null,null,null,null,null,null,null,null,null,null,null,false,null,null,null,null,null,null,null,"(10)の補問\n虐待の種類\n（複数回答可）",null,null,null,null,null,null,null,null,null,null,null,null,null,null,null,null,null,false,null,null,null,null,null,null,null,null,null,null,null,null,false]
[null,null,null,null,null,null,null,null,null,null,null,null,null,null,null,null,null,null,null,null,null,null,null,null,null,null,null,null,null,null,null,null,null,null,null,null,null,null,null,null,null,null,null,null,null,null,null,null,null,null,null,null,null,null,null,null,null,null,null,null,false,null,null,null,null,null,null,null,null,null,null,null,null,false]

{"sheet":"data","index":1,"n_rows":5,"n_cols":70,"rows_kept":5,"cut":false,"hidden":true,"merged":[[2,12,3,12],[1,11,1,12],[1,0,3,0],[1,1,1,6],[2,1,3,1],[2,2,3,2],[2,3,3,3],[2,4,3,4],[2,5,3,5],[2,6,3,6],[2,7,3,7],[2,8,3,8],[2,9,2,10],[1,9,1,10],[2,11,3,11],[2,64,3,64],[2,65,3,65],[2,66,2,69],[1,65,1,69],[2,13,2,33],[1,13,1,33],[2,34,2,40],[1,34,1,40],[2,41,2,62],[1,41,1,62],[2,63,3,63]]}
[]
["項目","KEY番号",null,null,null,null,null,"質問１","質問２","質問３",null,"質問４",null,"質問５",null,null,null,null,null,null,null,null,null,null,null,null,null,null,null,null,null,null,null,null,"質問５",null,null,null,null,null,null,"質問７",null,null,null,null,null,null,null,null,null,null,null,null,null,null,null,null,null,null,null,null,null,"質問８","質問９","質問１０"]
[null,"都道府県・指定都市・中核市・児童相談所設置市番号","施設番号","児童番号","調査票種別","自治体名","施設名","児童番号","性別","出生年月",null,"就学及び就職状況","補問","心身の状況",null,null,null,null,null,null,null,null,null,null,null,null,null,null,null,null,null,null,null,null,"罹病傾向",null,null,null,null,null,null,"特に支援上留意している点",null,null,null,null,null,null,null,null,null,null,null,null,null,null,null,null,null,null,null,null,null,"学業の状況","通学状況","被虐待経験の状況","補問"]
[null,null,null,null,null,null,null,null,null,"年","月",null,null,"01","02","03","04","05","06","07","08","09","10","11","12","13","14","15","16","17","18","19","20","その他障害",1,2,3,4,5,6,7,"01","02","03","04","05","06","07","08","09","10","11","12","13","14","15","16","17","18","19","20","21","その他フリーワード",null,null,null,1,2,3,4]
["回答",{"$f":"'【調査票 09】母子生活（児）'!$K$9","v":0},{"$f":"'【調査票 09】母子生活（児）'!$W$9","v":0},{"$f":"'【調査票 09】母子生活（児）'!$AE$9","v":0},{"$f":"'【調査票 09】母子生活（児）'!$AP$9","v":"９"},{"$f":"'【調査票 09】母子生活（児）'!$BZ$10","v":0},{"$f":"'【調査票 09】母子生活（児）'!$BZ$13","v":0},{"$f":"'【調査票 09】母子生活（児）'!$V$16","v":0},{"$f":"'【調査票 09】母子生活（児）'!$AS$16","v":0},{"$f":"'【調査票 09】母子生活（児）'!$BR$16","v":0},{"$f":"'【調査票 09】母子生活（児）'!$CC$16","v":0},{"$f":"'【調査票 09】母子生活（児）'!$Y$18","v":0},{"$f":"'【調査票 09】母子生活（児）'!$BR$18","v":0},{"$f":"IF('【調査票 09】母子生活（児）'!$S$28=FALSE,0,1)","v":0},{"$f":"IF('【調査票 09】母子生活（児）'!$S$29=FALSE,0,1)","v":0},{"$f":"IF('【調査票 09】母子生活（児）'!$AJ$29=FALSE,0,1)","v":0},{"$f":"IF('【調査票 09】母子生活（児）'!$BA$29=FALSE,0,1)","v":0},{"$f":"IF('【調査票 09】母子生活（児）'!$BP$29=FALSE,0,1)","v":0},{"$f":"IF('【調査票 09】母子生活（児）'!$S$30=FALSE,0,1)","v":0},{"$f":"IF('【調査票 09】母子生活（児）'!$AJ$30=FALSE,0,1)","v":0},{"$f":"IF('【調査票 09】母子生活（児）'!$BA$30=FALSE,0,1)","v":0},{"$f":"IF('【調査票 09】母子生活（児）'!$BP$30=FALSE,0,1)","v":0},{"$f":"IF('【調査票 09】母子生活（児）'!$S$31=FALSE,0,1)","v":0},{"$f":"IF('【調査票 09】母子生活（児）'!$AJ$31=FALSE,0,1)","v":0},{"$f":"IF('【調査票 09】母子生活（児）'!$BF$31=FALSE,0,1)","v":0},{"$f":"IF('【調査票 09】母子生活（児）'!$S$32=FALSE,0,1)","v":0},{"$f":"IF('【調査票 09】母子生活（児）'!$AT$32=FALSE,0,1)","v":0},{"$f":"IF('【調査票 09】母子生活（児）'!$BC$32=FALSE,0,1)","v":0},{"$f":"IF('【調査票 09】母子生活（児）'!$BP$32=FALSE,0,1)","v":0},{"$f":"IF('【調査票 09】母子生活（児）'!$S$33=FALSE,0,1)","v":0},{"$f":"IF('【調査票 09】母子生活（児）'!$AJ$33=FALSE,0,1)","v":0},{"$f":"IF('【調査票 09】母子生活（児）'!$S$34=FALSE,0,1)","v":0},{"$f":"IF('【調査票 09】母子生活（児）'!$S$35=FALSE,0,1)","v":0},{"$f":"'【調査票 09】母子生活（児）'!$AT$33","v":0},{"$f":"IF('【調査票 09】母子生活（児）'!$S$38=FALSE,0,1)","v":0},{"$f":"IF('【調査票 09】母子生活（児）'!$AJ$38=FALSE,0,1)","v":0},{"$f":"IF('【調査票 09】母子生活（児）'!$BA$38=FALSE,0,1)","v":0},{"$f":"IF('【調査票 09】母子生活（児）'!$BO$38=FALSE,0,1)","v":0},{"$f":"IF('【調査票 09】母子生活（児）'!$S$39=FALSE,0,1)","v":0},{"$f":"IF('【調査票 09】母子生活（児）'!$AJ$39=FALSE,0,1)","v":0},{"$f":"IF('【調査票 09】母子生活（児）'!$BA$39=FALSE,0,1)","v":0},{"$f":"IF('【調査票 09】母子生活（児）'!$S$42=FALSE,0,1)","v":0},{"$f":"IF('【調査票 09】母子生活（児）'!$AK$42=FALSE,0,1)","v":0},{"$f":"IF('【調査票 09】母子生活（児）'!$BA$42=FALSE,0,1)","v":0},{"$f":"IF('【調査票 09】母子生活（児）'!$BT$42=FALSE,0,1)","v":0},{"$f":"IF('【調査票 09】母子生活（児）'!$S$43=FALSE,0,1)","v":0},{"$f":"IF('【調査票 09】母子生活（児）'!$AK$43=FALSE,0,1)","v":0},{"$f":"IF('【調査票 09】母子生活（児）'!$BA$43=FALSE,0,1)","v":0},{"$f":"IF('【調査票 09】母子生活（児）'!$BT$43=FALSE,0,1)","v":0},{"$f":"IF('【調査票 09】母子生活（児）'!$S$44=FALSE,0,1)","v":0},{"$f":"IF('【調査票 09】母子生活（児）'!$AK$44=FALSE,0,1)","v":0},{"$f":"IF('【調査票 09】母子生活（児）'!$BA$44=FALSE,0,1)","v":0},{"$f":"IF('【調査票 09】母子生活（児）'!$BT$44=FALSE,0,1)","v":0},{"$f":"IF('【調査票 09】母子生活（児）'!$S$45=FALSE,0,1)","v":0},{"$f":"IF('【調査票 09】母子生活（児）'!$AK$45=FALSE,0,1)","v":0},{"$f":"IF('【調査票 09】母子生活（児）'!$BA$45=FALSE,0,1)","v":0},{"$f":"IF('【調査票 09】母子生活（児）'!$BT$45=FALSE,0,1)","v":0},{"$f":"IF('【調査票 09】母子生活（児）'!$S$46=FALSE,0,1)","v":0},{"$f":"IF('【調査票 09】母子生活（児）'!$AK$46=FALSE,0,1)","v":0},{"$f":"IF('【調査票 09】母子生活（児）'!$BA$46=FALSE,0,1)","v":0},{"$f":"IF('【調査票 09】母子生活（児）'!$BT$46=FALSE,0,1)","v":0},{"$f":"IF('【調査票 09】母子生活（児）'!$S$47=FALSE,0,1)","v":0},{"$f":"'【調査票 09】母子生活（児）'!$BZ$46","v":0},{"$f":"'【調査票 09】母子生活（児）'!$U$49","v":0},{"$f":"'【調査票 09】母子生活（児）'!$U$50","v":0},{"$f":"'【調査票 09】母子生活（児）'!$S$52","v":0},{"$f":"IF('【調査票 09】母子生活（児）'!$BI$52=FALSE,0,1)","v":0},{"$f":"IF('【調査票 09】母子生活（児）'!$BV$52=FALSE,0,1)","v":0},{"$f":"IF('【調査票 09】母子生活（児）'!$BI$53=FALSE,0,1)","v":0},{"$f":"IF('【調査票 09】母子生活（児）'!$BV$53=FALSE,0,1)","v":0}]